[Event "Kwalificatie NJK B Groningen"]
[Site "Hoogkerk, Netherlands"]
[Date "2023.02.18"]
[Round "4.3"]
[White "Lee, Jungmin"]
[Black "Krylov, Philippe"]
[Result "0-1"]
[TimeControl "55 min. + 10 sec./zet"]
[WhiteElo "1600"]
[BlackElo "1862"]

1. d4 {[%clk 00:55:16]} {[%emt 00:00:03]} d5 {[%clk 00:55:14]} {[%emt
00:00:07]} 2. c4 {[%clk 00:55:20]} {[%emt 00:00:05]} c6 {[%clk 00:55:21]}
{[%emt 00:00:03]} 3. g3 {[%clk 00:55:23]} {[%emt 00:00:07]} Nf6 {[%clk
00:55:22]} {[%emt 00:00:10]} 4. Bg2 {[%clk 00:55:23]} {[%emt 00:00:09]} Bf5
{[%clk 00:55:17]} {[%emt 00:00:15]} 5. Nf3 {[%clk 00:55:25]} {[%emt 00:00:08]}
e6 {[%clk 00:55:21]} {[%emt 00:00:06]} 6. O-O {[%clk 00:55:29]} {[%emt
00:00:06]} Nbd7 {[%clk 00:55:12]} {[%emt 00:00:20]} 7. cxd5 {[%clk 00:51:39]}
{[%emt 00:04:00]} cxd5 {[%emt 00:01:18]} 8. Nc3 {[%clk 00:51:11]} {[%emt
00:00:28]} Bb4 {[%clk 00:49:00]} {[%emt 00:05:23]} 9. Bg5 {[%clk 00:50:26]}
{[%emt 00:00:55]} Bxc3 {[%clk 00:47:58]} {[%emt 00:01:12]} 10. bxc3 {[%clk
00:50:28]} {[%emt 00:00:07]} Rc8 {[%clk 00:46:05]} {[%emt 00:02:03]} 11. Qb3
{[%clk 00:48:25]} {[%emt 00:02:13]} Qb6 {[%clk 00:44:42]} {[%emt 00:01:31]} 12.
e3 {[%emt 00:07:39]} O-O {[%clk 00:42:31]} 13. Nh4 {[%clk 00:40:23]} {[%emt
00:03:05]} Bd3 {[%clk 00:39:10]} {[%emt 00:03:31]} 14. Rfc1 {[%clk 00:38:55]}
{[%emt 00:01:39]} h6 {[%clk 00:36:34]} {[%emt 00:02:46]} 15. Bxf6 {[%clk
00:38:38]} {[%emt 00:00:27]} Nxf6 {[%clk 00:36:31]} {[%emt 00:00:12]} 16. Bf1
{[%emt 00:02:17]} Bxf1 {[%clk 00:34:28]} 17. Kxf1 {[%clk 00:38:46]} {[%emt
00:00:06]} Ne4 {[%clk 00:34:16]} {[%emt 00:00:23]} 18. Nf3 {[%clk 00:38:16]}
{[%emt 00:00:40]} Qa6+ {[%clk 00:32:57]} {[%emt 00:01:29]} 19. Kg2 {[%clk
00:36:48]} {[%emt 00:01:38]} Rc7 {[%clk 00:31:46]} {[%emt 00:01:22]} 20. Rc2
{[%clk 00:36:29]} {[%emt 00:00:29]} Rfc8 {[%clk 00:31:12]} {[%emt 00:00:43]} 21.
Rac1 {[%clk 00:36:10]} {[%emt 00:00:30]} b6 {[%clk 00:28:44]} {[%emt 00:02:38]}
22. Nd2 {[%clk 00:35:55]} {[%emt 00:00:24]} Nxd2 {[%clk 00:27:38]} {[%emt
00:01:16]} 23. Rxd2 {[%clk 00:35:57]} {[%emt 00:00:08]} Rc4 {[%clk 00:27:10]}
{[%emt 00:00:38]} 24. Rdc2 {[%clk 00:35:02]} {[%emt 00:01:05]} Qa5 {[%clk
00:23:21]} {[%emt 00:04:00]} 25. h4 {[%clk 00:33:33]} {[%emt 00:01:38]} b5
{[%clk 00:22:53]} {[%emt 00:00:39]} 26. Kf3 {[%clk 00:33:28]} {[%emt 00:00:15]}
Ra4 {[%clk 00:21:51]} {[%emt 00:01:11]} 27. e4 {[%clk 00:32:29]} {[%emt
00:01:09]} Ra3 {[%clk 00:21:20]} {[%emt 00:00:40]} 28. Qb2 {[%clk 00:32:29]}
{[%emt 00:00:11]} b4 {[%clk 00:20:51]} {[%emt 00:00:40]} 29. exd5 {[%clk
00:31:46]} {[%emt 00:00:52]} exd5 {[%clk 00:19:46]} {[%emt 00:01:16]} 30. Kg2
{[%clk 00:31:19]} {[%emt 00:00:37]} Raxc3 {[%clk 00:15:58]} {[%emt 00:03:58]}
31. Rxc3 {[%clk 00:30:24]} {[%emt 00:01:04]} bxc3 {[%clk 00:13:38]} {[%emt
00:02:30]} 32. Qb7 {[%clk 00:30:10]} {[%emt 00:00:25]} Rc7 {[%clk 00:13:06]}
{[%emt 00:00:42]} 33. Qb8+ {[%clk 00:29:35]} {[%emt 00:00:44]} Kh7 {[%clk
00:13:12]} {[%emt 00:00:05]} 34. Qb3 {[%clk 00:28:38]} {[%emt 00:01:07]} Rc4
{[%clk 00:07:03]} {[%emt 00:06:19]} 35. Qb7 {[%clk 00:28:06]} {[%emt 00:00:41]}
Qxa2 {[%clk 00:04:37]} {[%emt 00:02:36]} 36. Qxd5 {[%clk 00:27:52]} {[%emt
00:00:24]} Qd2 {[%clk 00:04:22]} {[%emt 00:00:26]} 37. Rb1 {[%clk 00:27:06]}
{[%emt 00:00:56]} Qd3 {[%clk 00:03:38]} {[%emt 00:00:54]} 38. Rb7 {[%clk
00:26:48]} {[%emt 00:00:27]} c2 {[%clk 00:03:34]} {[%emt 00:00:14]} 39. Qxf7
{[%clk 00:26:51]} {[%emt 00:00:08]} Qe4+ {[%clk 00:03:15]} {[%emt 00:00:29]} 40.
Kh3 {[%clk 00:26:26]} {[%emt 00:00:34]} Qh1+ {[%clk 00:03:12]} {[%emt
00:00:13]} 41. Kg4 {[%clk 00:26:25]} {[%emt 00:00:11]} Rxd4+ {[%clk 00:03:13]}
{[%emt 00:00:09]} 42. Kh5 {[%clk 00:26:09]} {[%emt 00:00:27]} Qd5+ {[%clk
00:03:16]} {[%emt 00:00:05]} 43. Qxd5 {[%clk 00:26:06]} {[%emt 00:00:14]} Rxd5+
{[%clk 00:03:25]} {[%emt 00:00:01]} 0-1

[Event "Kwalificatie NJK B Groningen"]
[Site "Hoogkerk, Netherlands"]
[Date "2023.02.18"]
[Round "4.4"]
[White "Van Foreest, Nanne"]
[Black "Ponomarev, Ivan"]
[Result "1-0"]
[TimeControl "55 min. + 10 sec./zet"]
[WhiteElo "1862"]
[BlackElo "1801"]

1. d4 {[%clk 00:55:19]} {[%emt 00:00:01]} Nf6 {[%clk 00:55:16]} {[%emt
00:00:04]} 2. Bf4 {[%clk 00:55:26]} {[%emt 00:00:03]} g6 {[%clk 00:54:27]}
{[%emt 00:00:59]} 3. Nf3 {[%clk 00:55:31]} {[%emt 00:00:05]} Bg7 {[%clk
00:54:26]} {[%emt 00:00:11]} 4. c4 {[%clk 00:55:16]} {[%emt 00:00:25]} O-O
{[%clk 00:53:33]} {[%emt 00:01:04]} 5. Nc3 {[%clk 00:54:51]} {[%emt 00:00:35]}
d6 {[%clk 00:51:49]} {[%emt 00:01:52]} 6. e3 {[%clk 00:54:49]} {[%emt
00:00:13]} Nbd7 {[%clk 00:47:10]} {[%emt 00:04:49]} 7. Be2 {[%clk 00:54:47]}
{[%emt 00:00:12]} Nh5 {[%clk 00:43:53]} {[%emt 00:03:27]} 8. Bg3 {[%clk
00:54:17]} {[%emt 00:00:40]} Nxg3 {[%clk 00:43:40]} {[%emt 00:00:23]} 9. hxg3
{[%clk 00:54:26]} {[%emt 00:00:01]} c5 {[%clk 00:40:46]} {[%emt 00:03:03]} 10.
O-O {[%clk 00:51:16]} {[%emt 00:03:21]} Nf6 {[%clk 00:36:22]} {[%emt 00:04:35]}
11. dxc5 {[%clk 00:49:54]} {[%emt 00:01:31]} dxc5 {[%clk 00:36:05]} {[%emt
00:00:27]} 12. Qxd8 {[%clk 00:49:55]} {[%emt 00:00:09]} Rxd8 {[%clk 00:36:13]}
{[%emt 00:00:02]} 13. Rad1 {[%clk 00:49:46]} {[%emt 00:00:19]} Bf5 {[%clk
00:33:54]} {[%emt 00:02:28]} 14. Nh4 {[%clk 00:49:03]} {[%emt 00:00:53]} Bg4
{[%clk 00:30:25]} {[%emt 00:03:40]} 15. f3 {[%clk 00:42:50]} {[%emt 00:06:23]}
Be6 {[%clk 00:26:40]} {[%emt 00:03:55]} 16. g4 {[%clk 00:40:34]} {[%emt
00:02:25]} Nd7 {[%clk 00:21:58]} {[%emt 00:04:53]} 17. Nd5 {[%clk 00:35:22]}
{[%emt 00:05:22]} Bxd5 {[%clk 00:18:51]} {[%emt 00:03:17]} 18. Rxd5 {[%clk
00:35:16]} {[%emt 00:00:16]} e6 {[%clk 00:17:20]} {[%emt 00:01:41]} 19. Rd2
{[%clk 00:30:28]} {[%emt 00:04:59]} Nb6 {[%clk 00:16:59]} {[%emt 00:00:30]} 20.
Rxd8+ {[%clk 00:28:43]} {[%emt 00:01:56]} Rxd8 {[%clk 00:17:07]} {[%emt
00:00:01]} 21. f4 {[%clk 00:28:12]} {[%emt 00:00:41]} Rd2 {[%clk 00:11:56]}
{[%emt 00:05:21]} 22. Rf2 {[%clk 00:28:21]} {[%emt 00:00:02]} Rxb2 {[%clk
00:11:22]} {[%emt 00:00:43]} 23. Bf1 {[%clk 00:28:25]} {[%emt 00:00:06]} Rb1
{[%clk 00:08:58]} {[%emt 00:02:34]} 24. Rc2 {[%clk 00:27:20]} {[%emt 00:01:15]}
Na4 {[%clk 00:07:07]} {[%emt 00:02:01]} 25. Rd2 {[%clk 00:24:37]} {[%emt
00:02:53]} Nc3 {[%clk 00:05:16]} {[%emt 00:02:01]} 26. Nf3 {[%clk 00:21:48]}
{[%emt 00:02:59]} Rd1 {[%clk 00:01:11]} {[%emt 00:04:16]} 27. Rc2 {[%clk
00:17:05]} {[%emt 00:04:52]} Ra1 {[%clk 00:00:36]} {[%emt 00:00:44]} 28. Rd2
{[%clk 00:15:30]} {[%emt 00:01:47]} Rxa2 {[%clk 00:00:30]} {[%emt 00:00:15]} 29.
Rd8+ {[%clk 00:15:19]} {[%emt 00:00:21]} Bf8 {[%clk 00:00:39]} 30. Rd7 {[%clk
00:15:29]} Rb2 {[%clk 00:00:29]} {[%emt 00:00:20]} 31. Ng5 {[%clk 00:15:26]}
{[%emt 00:00:12]} f6 {[%clk 00:00:20]} {[%emt 00:00:17]} 32. Nxe6 {[%clk
00:15:30]} {[%emt 00:00:08]} Bh6 {[%clk 00:00:13]} {[%emt 00:00:18]} 33. g5
{[%clk 00:15:29]} {[%emt 00:00:10]} fxg5 {[%clk 00:00:21]} {[%emt 00:00:02]} 34.
fxg5 {[%clk 00:15:37]} {[%emt 00:00:02]} a5 {[%clk 00:00:16]} {[%emt 00:00:16]}
35. gxh6 {[%clk 00:15:45]} {[%emt 00:00:02]} a4 {[%clk 00:00:25]} {[%emt
00:00:01]} 36. Rg7+ {[%clk 00:15:44]} {[%emt 00:00:11]} Kh8 {[%clk 00:00:30]}
{[%emt 00:00:04]} 37. Rf7 {[%clk 00:15:51]} {[%emt 00:00:03]} 1-0

[Event "Kwalificatie NJK B Groningen"]
[Site "Hoogkerk, Netherlands"]
[Date "2023.02.18"]
[Round "4.5"]
[White "Roorda, Cas"]
[Black "Van Hesselingen, Guido"]
[Result "1-0"]
[TimeControl "55 min. + 10 sec./zet"]
[WhiteElo "1654"]
[BlackElo "1908"]

1. e4 {[%clk 00:55:18]} e5 {[%clk 00:55:16]} 2. Nf3 {[%clk 00:55:24]} {[%emt
00:00:26]} Nc6 {[%clk 00:55:22]} 3. Bc4 {[%clk 00:55:30]} Bc5 {[%clk 00:55:27]}
4. c3 {[%clk 00:55:37]} Nf6 {[%clk 00:55:33]} 5. d3 {[%clk 00:55:44]} d6 {[%clk
00:55:11]} {[%emt 00:01:26]} 6. O-O {[%clk 00:55:44]} O-O {[%clk 00:54:24]}
{[%emt 00:00:30]} 7. Re1 {[%clk 00:55:37]} Bg4 {[%clk 00:53:51]} {[%emt
00:01:28]} 8. Nbd2 {[%clk 00:55:10]} Re8 {[%clk 00:52:20]} {[%emt 00:01:32]} 9.
h3 {[%clk 00:55:16]} {[%emt 00:00:36]} Be6 {[%clk 00:51:26]} {[%emt 00:01:09]}
10. b4 {[%clk 00:49:33]} {[%emt 00:05:15]} Bb6 {[%clk 00:51:03]} {[%emt
00:00:45]} 11. Qb3 {[%clk 00:47:52]} {[%emt 00:02:08]} Nh5 {[%clk 00:36:01]}
{[%emt 00:15:53]} 12. Bxe6 {[%clk 00:41:19]} {[%emt 00:06:01]} Rxe6 {[%clk
00:31:54]} {[%emt 00:03:59]} 13. Nc4 {[%clk 00:41:01]} {[%emt 00:01:49]} Nb8
{[%clk 00:24:24]} {[%emt 00:06:12]} 14. a4 {[%clk 00:36:00]} {[%emt 00:05:50]}
c6 {[%clk 00:24:22]} 15. Nxb6 {[%clk 00:34:24]} {[%emt 00:01:17]} Qxb6 {[%clk
00:23:40]} {[%emt 00:01:24]} 16. Be3 {[%clk 00:28:17]} {[%emt 00:06:25]} Qc7
{[%clk 00:23:36]} 17. b5 {[%clk 00:26:01]} {[%emt 00:02:46]} Nd7 {[%clk
00:21:03]} {[%emt 00:02:48]} 18. Rab1 {[%clk 00:22:15]} {[%emt 00:03:04]} Ree8
{[%clk 00:18:20]} {[%emt 00:03:46]} 19. bxc6 {[%clk 00:19:00]} {[%emt
00:02:32]} bxc6 {[%clk 00:17:32]} {[%emt 00:01:22]} 20. Qb7 {[%clk 00:18:44]}
{[%emt 00:00:05]} Rec8 {[%clk 00:15:41]} {[%emt 00:01:58]} 21. g3 {[%clk
00:14:35]} {[%emt 00:05:00]} Qd8 {[%clk 00:14:19]} {[%emt 00:02:09]} 22. Qa6
{[%clk 00:11:54]} {[%emt 00:01:33]} Nb8 {[%clk 00:12:13]} {[%emt 00:02:47]} 23.
Qc4 {[%clk 00:11:59]} Nd7 {[%clk 00:10:50]} {[%emt 00:02:21]} 24. Rb7 {[%clk
00:11:16]} Rc7 {[%clk 00:08:46]} {[%emt 00:01:54]} 25. Reb1 {[%clk 00:10:27]}
{[%emt 00:00:58]} Nb6 {[%clk 00:07:17]} {[%emt 00:02:01]} 26. Bxb6 {[%clk
00:10:08]} {[%emt 00:00:37]} Rxb7 {[%clk 00:07:09]} {[%emt 00:00:17]} 27. Bxd8
{[%clk 00:09:55]} Rxb1+ {[%clk 00:07:15]} 28. Kg2 {[%clk 00:09:51]} {[%emt
00:00:40]} Rxd8 {[%clk 00:07:21]} 29. Qxc6 {[%clk 00:09:44]} Rb6 {[%clk
00:04:38]} {[%emt 00:02:46]} 30. Qc7 {[%clk 00:09:15]} {[%emt 00:02:01]} Rdb8
{[%clk 00:04:05]} 31. Qxa7 {[%clk 00:08:53]} h6 {[%clk 00:04:04]} {[%emt
00:00:23]} 32. Nd2 {[%clk 00:08:23]} {[%emt 00:00:42]} Nf6 {[%clk 00:03:23]}
{[%emt 00:00:46]} 33. Nc4 {[%clk 00:07:57]} {[%emt 00:00:23]} R6b7 {[%clk
00:03:13]} {[%emt 00:00:17]} 34. Qa6 {[%clk 00:07:53]} {[%emt 00:01:48]} d5
{[%clk 00:03:13]} 35. Nxe5 {[%clk 00:05:59]} {[%emt 00:01:49]} Rb6 {[%clk
00:02:28]} 36. Qa5 {[%clk 00:05:42]} {[%emt 00:00:28]} dxe4 {[%clk 00:02:23]}
37. d4 {[%clk 00:05:15]} {[%emt 00:01:07]} Rb2 {[%clk 00:02:15]} 38. Nc4 {[%clk
00:03:58]} {[%emt 00:01:40]} Ra2 {[%clk 00:02:03]} 39. Qa7 {[%clk 00:03:26]}
{[%emt 00:01:05]} Rf8 {[%clk 00:01:30]} {[%emt 00:00:44]} 40. Ne3 {[%clk
00:02:46]} {[%emt 00:00:28]} Rd8 {[%clk 00:01:23]} {[%emt 00:01:13]} 41. d5
{[%clk 00:02:34]} Rd2 {[%clk 00:01:15]} 42. c4 {[%clk 00:02:36]} g6 {[%clk
00:01:21]} 43. Qe7 {[%clk 00:02:38]} Ra8 {[%clk 00:01:09]} {[%emt 00:00:32]} 44.
Qxf6 {[%clk 00:02:33]} {[%emt 00:00:05]} Rxa4 {[%clk 00:01:17]} {[%emt
00:00:09]} 45. d6 {[%clk 00:02:17]} {[%emt 00:00:30]} Ra6 {[%clk 00:01:18]} 46.
Nd5 {[%clk 00:02:06]} {[%emt 00:01:41]} e3 {[%clk 00:01:14]} 47. Ne7+ {[%clk
00:02:08]} Kh7 {[%clk 00:01:18]} 48. Qxf7+ {[%clk 00:02:16]} Kh8 {[%clk
00:01:27]} 49. Qg8# 1-0

[Event "Kwalificatie NJK B Groningen"]
[Site "Hoogkerk, Netherlands"]
[Date "2023.02.18"]
[Round "4.6"]
[White "Wortman, Rawi"]
[Black "Niemeijer, LÃ©on"]
[Result "0-1"]
[TimeControl "55 min. + 10 sec./zet"]
[WhiteElo "1619"]
[BlackElo "1860"]

1. e4 {[%clk 00:55:19]} {[%emt 00:00:04]} e6 {[%clk 00:55:17]} 2. d4 {[%clk
00:55:24]} d5 {[%clk 00:55:23]} 3. Nd2 {[%clk 00:55:31]} {[%emt 00:00:05]} c5
{[%clk 00:55:29]} 4. exd5 {[%clk 00:55:33]} {[%emt 00:00:25]} Qxd5 {[%clk
00:55:35]} 5. Ngf3 {[%clk 00:55:34]} cxd4 {[%clk 00:55:29]} {[%emt 00:00:11]} 6.
Bc4 {[%clk 00:54:41]} {[%emt 00:01:08]} Qd7 {[%clk 00:55:34]} 7. Nb3 {[%clk
00:54:18]} {[%emt 00:00:38]} Nc6 {[%clk 00:55:27]} {[%emt 00:00:12]} 8. Nbxd4
{[%clk 00:53:41]} {[%emt 00:00:52]} a6 {[%clk 00:52:47]} {[%emt 00:02:46]} 9.
O-O {[%clk 00:51:41]} {[%emt 00:02:09]} Bd6 {[%clk 00:52:35]} {[%emt 00:00:30]}
10. Re1 {[%clk 00:50:31]} {[%emt 00:01:16]} Qc7 {[%clk 00:51:43]} {[%emt
00:01:01]} 11. Be3 {[%clk 00:47:22]} {[%emt 00:03:21]} Nge7 {[%clk 00:50:36]}
{[%emt 00:01:20]} 12. Bb3 {[%clk 00:46:23]} {[%emt 00:01:06]} O-O {[%clk
00:50:02]} {[%emt 00:00:38]} 13. Qd2 {[%clk 00:44:52]} {[%emt 00:01:51]} b5
{[%clk 00:49:17]} {[%emt 00:00:46]} 14. Rad1 {[%clk 00:43:48]} {[%emt
00:01:24]} Rd8 {[%clk 00:48:46]} {[%emt 00:00:50]} 15. Qe2 {[%clk 00:39:06]}
{[%emt 00:04:54]} Bb7 {[%clk 00:48:15]} {[%emt 00:00:24]} 16. h3 {[%clk
00:38:16]} {[%emt 00:01:22]} Nxd4 {[%clk 00:42:56]} {[%emt 00:05:05]} 17. Bxd4
{[%clk 00:36:22]} {[%emt 00:02:27]} Nc6 {[%clk 00:42:40]} {[%emt 00:00:06]} 18.
Bc3 {[%clk 00:35:52]} {[%emt 00:00:49]} b4 {[%clk 00:40:56]} {[%emt 00:01:46]}
19. Bd2 {[%clk 00:35:27]} {[%emt 00:00:43]} Na5 {[%clk 00:39:01]} {[%emt
00:02:07]} 20. Ba4 {[%clk 00:33:30]} {[%emt 00:02:05]} Nc4 {[%clk 00:38:39]}
{[%emt 00:01:05]} 21. Bc1 {[%clk 00:32:20]} {[%emt 00:00:36]} Nb6 {[%clk
00:38:42]} {[%emt 00:00:18]} 22. Bb3 {[%clk 00:31:59]} {[%emt 00:00:17]} a5
{[%clk 00:34:40]} {[%emt 00:04:26]} 23. a3 {[%clk 00:29:02]} {[%emt 00:03:11]}
bxa3 {[%clk 00:34:13]} {[%emt 00:00:35]} 24. bxa3 {[%clk 00:28:59]} Bxf3 {[%clk
00:33:43]} {[%emt 00:00:55]} 25. gxf3 {[%clk 00:27:52]} {[%emt 00:01:02]} a4
{[%clk 00:33:26]} {[%emt 00:00:23]} 26. Ba2 {[%clk 00:27:47]} {[%emt 00:00:16]}
Rac8 {[%clk 00:33:24]} {[%emt 00:00:19]} 27. Bb1 {[%clk 00:25:09]} {[%emt
00:02:58]} Nd5 {[%clk 00:31:47]} {[%emt 00:03:07]} 28. Bd2 {[%clk 00:22:13]}
{[%emt 00:01:30]} Bxa3 {[%clk 00:31:18]} {[%emt 00:00:44]} 29. Qe4 {[%clk
00:21:14]} {[%emt 00:01:14]} Qc4 {[%clk 00:29:44]} {[%emt 00:01:41]} 30. Qe5
{[%clk 00:19:30]} {[%emt 00:01:45]} Bd6 {[%clk 00:28:57]} {[%emt 00:00:57]} 31.
Qg5 {[%clk 00:19:22]} {[%emt 00:00:27]} Be7 {[%clk 00:27:26]} {[%emt 00:01:35]}
32. Qg3 {[%clk 00:18:57]} {[%emt 00:00:31]} Nc3 {[%clk 00:27:01]} {[%emt
00:01:43]} 33. Bxc3 {[%clk 00:17:46]} {[%emt 00:00:14]} Qxc3 {[%clk 00:27:08]}
{[%emt 00:00:06]} 34. Kh1 {[%clk 00:16:14]} {[%emt 00:01:38]} a3 {[%clk
00:26:05]} {[%emt 00:01:13]} 35. Rg1 {[%clk 00:14:14]} {[%emt 00:02:10]} Rxd1
{[%clk 00:25:57]} {[%emt 00:00:30]} 36. Rxd1 {[%clk 00:14:22]} Qb2 {[%clk
00:25:27]} {[%emt 00:00:32]} 0-1

[Event "Kwalificatie NJK B Groningen"]
[Site "Hoogkerk, Netherlands"]
[Date "2023.02.18"]
[Round "4.7"]
[White "Lopes, Samuel"]
[Black "Haque, Nishaaz"]
[Result "1-0"]
[TimeControl "55 min. + 10 sec./zet"]
[WhiteElo "1826"]
[BlackElo "1669"]

1. e4 {[%clk 00:55:17]} {[%emt 00:00:41]} c5 {[%clk 00:55:18]} 2. Nf3 {[%clk
00:55:20]} Nc6 {[%clk 00:55:24]} 3. Bb5 {[%clk 00:55:20]} {[%emt 00:00:10]} e6
{[%clk 00:55:29]} 4. O-O {[%clk 00:55:22]} Nge7 {[%clk 00:55:37]} 5. c3 {[%clk
00:55:19]} {[%emt 00:00:05]} a6 {[%clk 00:55:43]} {[%emt 00:00:04]} 6. Bxc6
{[%clk 00:54:32]} {[%emt 00:01:33]} Nxc6 {[%clk 00:55:47]} 7. d4 {[%clk
00:54:25]} {[%emt 00:00:20]} d5 {[%clk 00:55:26]} 8. e5 {[%clk 00:54:23]}
{[%emt 00:00:10]} Be7 {[%clk 00:55:07]} {[%emt 00:00:29]} 9. Be3 {[%clk
00:53:30]} {[%emt 00:01:01]} c4 {[%clk 00:54:38]} {[%emt 00:00:51]} 10. Nbd2
{[%clk 00:53:08]} {[%emt 00:01:11]} O-O {[%clk 00:53:31]} {[%emt 00:01:04]} 11.
b3 {[%clk 00:52:51]} b5 {[%clk 00:52:30]} {[%emt 00:01:36]} 12. a4 {[%clk
00:43:20]} {[%emt 00:11:07]} Bb7 {[%clk 00:50:20]} {[%emt 00:00:21]} 13. b4
{[%clk 00:41:07]} {[%emt 00:02:20]} h6 {[%clk 00:47:32]} {[%emt 00:04:30]} 14.
Qb1 {[%clk 00:38:20]} {[%emt 00:01:54]} Qd7 {[%clk 00:45:51]} {[%emt 00:02:10]}
15. a5 {[%clk 00:37:18]} {[%emt 00:00:51]} Qc7 {[%clk 00:44:17]} {[%emt
00:02:08]} 16. Re1 {[%clk 00:34:51]} {[%emt 00:01:45]} f6 {[%clk 00:42:43]}
{[%emt 00:02:08]} 17. Bf4 {[%clk 00:33:07]} {[%emt 00:02:30]} f5 {[%clk
00:42:28]} 18. h3 {[%clk 00:30:01]} {[%emt 00:02:53]} g5 {[%clk 00:40:14]}
{[%emt 00:03:06]} 19. Bg3 {[%clk 00:29:36]} Bd8 {[%clk 00:39:35]} {[%emt
00:00:49]} 20. Rf1 {[%clk 00:26:38]} {[%emt 00:04:28]} Qh7 {[%clk 00:38:37]} 21.
Ne1 {[%clk 00:25:23]} {[%emt 00:01:13]} f4 {[%clk 00:38:32]} 22. Qxh7+ {[%clk
00:24:01]} {[%emt 00:02:25]} Kxh7 {[%clk 00:38:35]} 23. Bh2 {[%clk 00:24:05]}
Ne7 {[%clk 00:38:07]} 24. g3 {[%clk 00:22:37]} {[%emt 00:02:17]} Ng6 {[%clk
00:37:17]} {[%emt 00:01:12]} 25. g4 {[%clk 00:22:17]} Bc6 {[%clk 00:36:23]}
{[%emt 00:00:47]} 26. Ng2 {[%clk 00:21:16]} {[%emt 00:02:03]} f3 {[%clk
00:35:35]} 27. Ne1 {[%clk 00:21:11]} {[%emt 00:00:14]} Ra7 {[%clk 00:33:02]}
{[%emt 00:02:38]} 28. Ndxf3 {[%clk 00:19:24]} {[%emt 00:03:18]} Raf7 {[%clk
00:32:59]} 29. Nd2 {[%clk 00:18:25]} {[%emt 00:00:10]} Nf4 {[%clk 00:31:52]}
{[%emt 00:02:51]} 30. Bxf4 {[%clk 00:17:03]} gxf4 {[%clk 00:28:40]} {[%emt
00:03:20]} 31. Nef3 {[%clk 00:13:03]} {[%emt 00:04:37]} Rg7 {[%clk 00:28:02]}
{[%emt 00:00:14]} 32. Kh2 {[%clk 00:12:30]} {[%emt 00:00:56]} Be8 {[%clk
00:27:38]} {[%emt 00:00:55]} 33. Rg1 {[%clk 00:11:54]} {[%emt 00:02:02]} Rfg8
{[%clk 00:27:14]} 34. Kh1 {[%clk 00:07:48]} {[%emt 00:03:02]} Bg6 {[%clk
00:26:52]} {[%emt 00:00:28]} 35. Rae1 {[%clk 00:06:40]} {[%emt 00:01:48]} Bd3
{[%clk 00:26:29]} {[%emt 00:00:04]} 36. Rg2 {[%clk 00:03:28]} {[%emt 00:03:24]}
h5 {[%clk 00:24:57]} {[%emt 00:01:39]} 37. Reg1 {[%clk 00:03:06]} {[%emt
00:01:26]} Be4 {[%clk 00:23:56]} {[%emt 00:01:31]} 38. Nxe4 {[%clk 00:00:25]}
{[%emt 00:01:38]} dxe4 {[%clk 00:23:47]} {[%emt 00:00:56]} 39. Nd2 {[%clk
00:00:34]} e3 {[%clk 00:22:45]} {[%emt 00:01:30]} 40. fxe3 {[%clk 00:00:37]}
fxe3 {[%clk 00:22:50]} 41. Nf1 {[%clk 00:00:44]} Bg5 {[%clk 00:21:51]} {[%emt
00:00:30]} 42. Re2 {[%clk 00:00:48]} {[%emt 00:00:10]} Bh6 {[%clk 00:21:29]}
{[%emt 00:00:54]} 43. Nxe3 {[%clk 00:00:54]} Bxe3 {[%clk 00:21:35]} 44. Rxe3
{[%clk 00:00:58]} hxg4 {[%clk 00:21:19]} {[%emt 00:00:46]} 45. hxg4 {[%clk
00:01:05]} Rg6 {[%clk 00:20:49]} {[%emt 00:00:10]} 46. Rg2 {[%clk 00:00:28]}
{[%emt 00:01:09]} R8g7 {[%clk 00:20:14]} {[%emt 00:00:33]} 47. Kh2 {[%clk
00:00:20]} {[%emt 00:00:08]} Rh6+ {[%clk 00:19:07]} {[%emt 00:01:46]} 48. Rh3
{[%clk 00:00:24]} Rxh3+ {[%clk 00:19:09]} {[%emt 00:00:08]} 49. Kxh3 {[%clk
00:00:33]} Rf7 {[%clk 00:18:56]} {[%emt 00:00:05]} 50. Kg3 {[%clk 00:00:30]}
{[%emt 00:00:14]} Rf1 {[%clk 00:18:58]} {[%emt 00:00:08]} 51. Rf2 {[%clk
00:00:22]} {[%emt 00:00:23]} Rg1+ {[%emt 00:00:17]} 52. Kf4 {[%clk 00:00:13]}
Rc1 {[%clk 00:18:52]} {[%emt 00:00:37]} 53. Rf3 {[%clk 00:00:19]} Kg6 {[%clk
00:18:54]} 54. Ke4 {[%clk 00:00:14]} {[%emt 00:00:09]} Kg5 {[%clk 00:18:35]}
{[%emt 00:01:12]} 55. Rf6 {[%clk 00:00:11]} Rxc3 {[%clk 00:18:17]} 56. Rxe6
{[%clk 00:00:20]} {[%emt 00:00:13]} Rc1 {[%clk 00:17:49]} {[%emt 00:00:53]} 57.
Rxa6 {[%clk 00:00:26]} c3 {[%clk 00:17:53]} 58. Rc6 {[%clk 00:00:34]} Kxg4
{[%clk 00:17:50]} {[%emt 00:00:14]} 59. a6 {[%clk 00:00:31]} {[%emt 00:00:36]}
Re1+ {[%clk 00:17:35]} 60. Kd5 Ra1 {[%clk 00:17:15]} {[%emt 00:00:50]} 61. Rxc3
{[%clk 00:00:40]} Rxa6 {[%clk 00:17:19]} 62. Rc6 {[%clk 00:00:45]} 1-0